bitfinex-derivatives/quotes_BTCF0:USTF0_20250417
["timestamp","ask_amount","ask_price","bid_price","bid_amount"]
[1744915233765,0.5122108,85469.0,85468.0,0.1546122]
[1744915234165,0.5480108,85469.0,85468.0,0.1546122]
[1744915236975,0.431,85469.0,85468.0,0.1546122]
[1744915237175,0.5480108,85469.0,85468.0,0.1888122]
[1744915238880,0.431,85469.0,85468.0,0.1888122]
[1744915239073,0.5480108,85469.0,85468.0,0.1888122]
[1744915240076,0.5480108,85469.0,85468.0,0.1546122]
[1744915246692,0.117019,85463.0,85404.0,0.5854952]
[1744915246898,0.117019,85463.0,85448.0,0.35328827]
[1744915246899,0.1170382,85449.0,85448.0,0.35328827]
[1744915247193,0.4778382,85449.0,85448.0,0.35328827]
[1744915247496,0.3608,85456.0,85455.0,0.11703]
[1744915247695,0.36090801,85456.0,85455.0,0.11703]
[1744915247887,0.1170382,85449.0,85448.0,0.23625757]
[1744915248085,0.4778382,85449.0,85448.0,0.23625757]
[1744915248288,0.1170396,85448.0,85447.0,0.00017554]
[1744915248590,0.1898396,85448.0,85447.0,0.00017554]
[1744915250086,0.1170437,85445.0,85444.0,0.1960733]
[1744915250592,0.4778437,85445.0,85444.0,0.1960733]
[1744915250989,0.4896639,85445.0,85444.0,0.1960733]
[1744915251184,0.4778437,85445.0,85444.0,0.1960733]
[1744915252988,0.4778437,85445.0,85439.0,0.0372]
[1744915252989,0.1170505,85440.0,85439.0,0.0372]
[1744915253183,0.1170505,85440.0,85439.0,0.1115]
[1744915253892,0.1892505,85440.0,85439.0,0.1115]
[1744915257201,0.1892505,85440.0,85439.0,0.0743]
[1744915257786,0.1170628,85431.0,85430.0,0.00860631]
[1744915257995,0.1170752,85422.0,85421.0,0.0369]
[1744915258196,0.4778752,85422.0,85421.0,0.0369]
[1744915258698,0.5128752,85422.0,85421.0,0.1074]
[1744915259490,0.1170848,85415.0,85414.0,0.17797359]
[1744915259690,0.4778848,85415.0,85414.0,0.17797359]
[1744915259893,0.4778848,85415.0,85414.0,0.21327359]
[1744915260199,0.4778848,85415.0,85414.0,0.25247359]
[1744915260402,0.4778848,85415.0,85414.0,0.28707359]
[1744915260604,0.4778848,85415.0,85414.0,0.40415969]
[1744915260804,0.3608,85415.0,85414.0,0.40415969]
[1744915261043,0.4778848,85415.0,85414.0,0.40415969]
[1744915261395,0.4778848,85415.0,85414.0,0.2261861]
[1744915262403,0.5151848,85415.0,85414.0,0.2261861]
[1744915264100,0.5151848,85415.0,85414.0,0.2231861]
[1744915267707,0.5151848,85415.0,85414.0,0.1061]
[1744915268412,0.1170861,85414.0,85413.0,0.00017554]
[1744915268705,0.1170985,85405.0,85404.0,0.003]
[1744915268904,0.4778985,85405.0,85404.0,0.003]
[1744915269096,0.5864985,85405.0,85404.0,0.003]
[1744915269302,0.1171012,85403.0,85402.0,0.1171023]
[1744915269503,0.4779012,85403.0,85402.0,0.1171023]
[1744915269807,0.435,85403.0,85402.0,0.1171023]
[1744915270212,0.39808,85403.0,85402.0,0.1171023]
[1744915270603,0.398,85403.0,85402.0,0.1171023]
[1744915270903,0.39808,85403.0,85402.0,0.1171023]
[1744915271103,0.39808,85403.0,85402.0,0.1201023]
[1744915271308,0.36088,85403.0,85402.0,0.1201023]
[1744915271729,0.3608,85403.0,85402.0,0.1908023]
[1744915271901,0.36088,85403.0,85402.0,0.1908023]
[1744915274716,0.00017565,85411.0,85410.0,0.1170916]
[1744915274905,0.03627565,85411.0,85410.0,0.1170916]
[1744915275107,0.03627565,85411.0,85410.0,0.1928916]
[1744915275413,0.00025565,85411.0,85410.0,0.1928916]
[1744915275723,0.3608,85418.0,85417.0,0.117082]
[1744915276220,0.3608,85418.0,85417.0,0.227582]
[1744915276417,0.36088,85418.0,85417.0,0.227582]
[1744915276613,0.3608,85418.0,85417.0,0.227582]
[1744915276818,0.36088,85418.0,85417.0,0.227582]
[1744915277722,0.36088,85418.0,85417.0,0.23952003]
[1744915278317,0.00017565,85426.0,85420.0,0.0585385]
[1744915278524,0.03639684,85435.0,85428.0,0.0585334]
[1744915278722,0.00026573,85440.0,85439.0,0.1170519]
[1744915279211,0.397,85443.0,85442.0,0.1170478]
[1744915280123,0.43388,85443.0,85442.0,0.1548478]
[1744915280719,0.43388,85443.0,85442.0,0.1170478]
[1744915281422,0.5509264,85443.0,85442.0,0.1170478]
[1744915281719,0.46898,85443.0,85442.0,0.1170478]
[1744915283309,0.4689,85443.0,85442.0,0.1170478]
[1744915283518,0.46898,85443.0,85442.0,0.1170478]
[1744915286217,0.43388,85443.0,85442.0,0.1170478]
[1744915286421,0.43388,85443.0,85442.0,0.1521478]
[1744915287131,0.43388,85443.0,85442.0,0.1170478]
[1744915291923,0.5509264,85443.0,85442.0,0.1170478]
[1744915300221,0.43388,85443.0,85442.0,0.1170478]
[1744915300620,0.4338,85443.0,85442.0,0.1893478]
[1744915300816,0.43388,85443.0,85442.0,0.1524478]
[1744915301018,0.43388,85443.0,85442.0,0.1170478]
[1744915301622,0.5509264,85443.0,85442.0,0.1170478]
[1744915302014,0.43388,85443.0,85442.0,0.1170478]
[1744915302413,0.5509264,85443.0,85442.0,0.1170478]
[1744915303327,0.43388,85443.0,85442.0,0.1170478]
[1744915305418,0.43388,85443.0,85442.0,0.1516478]
[1744915306515,0.5509264,85443.0,85442.0,0.1516478]
[1744915306728,0.5509264,85443.0,85442.0,0.1170478]
[1744915307423,0.43388,85443.0,85442.0,0.1170478]
[1744915308220,0.5509264,85443.0,85442.0,0.1170478]
[1744915308618,0.5509264,85443.0,85442.0,0.1520478]
[1744915309024,0.43388,85443.0,85442.0,0.1520478]
[1744915310537,0.00010801,85447.0,85446.0,0.1170423]
[1744915310828,0.3608,85460.0,85455.0,0.11703]
[1744915311029,0.038,85459.0,85455.0,0.11703]
[1744915311232,0.0585136,85457.0,85455.0,0.0373]
[1744915311522,0.0585177,85451.0,85450.0,0.1170344]
[1744915311722,0.4193177,85451.0,85450.0,0.1170344]
[1744915311926,0.4544177,85451.0,85450.0,0.1170344]
[1744915312152,0.4544977,85451.0,85450.0,0.1170344]
[1744915312434,0.4544977,85451.0,85450.0,0.1537344]
[1744915312634,0.39598,85451.0,85450.0,0.1537344]
[1744915312928,0.03518,85451.0,85450.0,0.1537344]
[1744915313125,0.03518,85451.0,85450.0,0.1894344]
[1744915313332,0.0351,85451.0,85450.0,0.2252344]
[1744915313526,0.03518,85451.0,85450.0,0.2252344]
[1744915313930,0.03518,85451.0,85450.0,0.1170344]
[1744915314128,0.1522154,85451.0,85450.0,0.1170344]
[1744915314321,0.03518,85451.0,85450.0,0.1170344]
[1744915315035,0.1522154,85451.0,85450.0,0.1170344]
[1744915315533,0.5130154,85451.0,85450.0,0.1170344]
[1744915315927,0.39598,85451.0,85450.0,0.1170344]
[1744915316228,0.5130154,85451.0,85450.0,0.1170344]
[1744915316830,0.5495154,85451.0,85450.0,0.1170344]
[1744915321729,0.5495154,85451.0,85450.0,0.1521344]
[1744915323340,0.43248,85451.0,85450.0,0.1521344]
[1744915323839,0.5495154,85451.0,85450.0,0.1521344]
[1744915324739,0.1887154,85451.0,85450.0,0.1521344]
[1744915325132,0.1887154,85451.0,85450.0,0.1170344]
[1744915326636,0.1887154,85451.0,85450.0,0.1518344]
[1744915326938,0.1887154,85451.0,85450.0,0.1170344]
[1744915327237,0.175573,85443.0,85442.0,0.058523]
[1744915327431,0.5948969,85443.0,85442.0,0.058523]
[1744915338343,0.5948969,85443.0,85442.0,0.096923]
[1744915343947,0.1170574,85435.0,85431.0,0.0585312]
[1744915344145,0.4778574,85435.0,85434.0,0.11723435]
[1744915344338,0.5498574,85435.0,85434.0,0.11723435]
[1744915344540,0.4328,85435.0,85434.0,0.11723435]
[1744915344742,0.39738,85435.0,85434.0,0.11723435]
[1744915345046,0.36088,85435.0,85434.0,0.18953435]
[1744915345249,0.3608,85435.0,85434.0,0.18953435]
[1744915345466,0.36088,85435.0,85434.0,0.18953435]
[1744915347582,8e-05,85435.0,85434.0,0.18953435]
[1744915357080,8e-05,85435.0,85434.0,0.15283435]
[1744915357685,8e-05,85435.0,85434.0,0.11723435]
[1744915358275,8e-05,85435.0,85434.0,0.15273435]
[1744915358680,0.1171374,85435.0,85434.0,0.00017565]
[1744915358880,0.4779374,85435.0,85434.0,0.00017565]
[1744915359077,0.058539,85421.0,85420.0,0.1756134]
[1744915359267,0.419339,85421.0,85420.0,0.2341516]
[1744915359475,0.1115,85422.0,85421.0,0.1170765]
[1744915359762,0.1115,85422.0,85421.0,0.1525765]
[1744915359950,0.0743,85422.0,85421.0,0.1895765]
[1744915362358,0.00017554,85430.0,85429.0,0.1170656]
[1744915362950,0.00025554,85430.0,85429.0,0.2259656]
[1744915363152,0.00025554,85430.0,85429.0,0.2289656]
[1744915366661,0.00017554,85430.0,85429.0,0.2289656]
[1744915366859,0.00025554,85430.0,85429.0,0.2289656]
[1744915367953,0.00025554,85430.0,85429.0,0.1119]
[1744915368964,0.00025554,85430.0,85429.0,0.0119]
[1744915369164,0.07255554,85430.0,85429.0,0.0119]
[1744915369366,0.18961974,85430.0,85429.0,0.003]
[1744915369555,0.1170738,85423.0,85422.0,0.07644]
[1744915369759,0.3608,85425.0,85413.0,0.01209996]
[1744915369954,0.1170784,85420.0,85413.0,0.01209996]
[1744915370155,0.1084,85419.0,85413.0,0.01209996]
[1744915370365,0.1084,85419.0,85416.0,0.07797359]
[1744915372471,0.1084,85419.0,85415.0,0.0367]
[1744915377766,0.0585418,85416.0,85413.0,0.00017554]
[1744915377986,0.1869855,85415.0,85413.0,0.00017554]
[1744915378561,0.0699,85415.0,85413.0,0.00017554]
[1744915379465,0.1170861,85414.0,85413.0,0.00017554]
[1744915379863,0.1923861,85414.0,85413.0,0.00017554]
[1744915381968,0.0753,85414.0,85413.0,0.00017554]
[1744915382171,0.1923861,85414.0,85413.0,0.00017554]
[1744915382866,0.0753,85414.0,85413.0,0.00017554]
[1744915383069,0.1923861,85414.0,85413.0,0.00017554]
[1744915389576,0.0753,85414.0,85413.0,0.00017554]
[1744915390172,0.1923861,85414.0,85413.0,0.00017554]
[1744915391872,0.1170998,85404.0,85403.0,0.07644]
[1744915392074,0.1170998,85404.0,85389.0,0.0366]
[1744915392075,0.0585506,85403.0,85389.0,0.0366]
[1744915392283,0.3608,85394.0,85387.0,0.0358]
[1744915392482,0.1067,85393.0,85387.0,0.0358]
[1744915393077,0.1067,85393.0,85387.0,0.1529231]
[1744915393275,0.1067,85393.0,85387.0,0.1559231]
[1744915394279,0.1067,85393.0,85388.0,0.1171216]
[1744915394682,0.1067,85393.0,85389.0,0.0375]
[1744915394984,0.0717,85393.0,85392.0,0.1171163]
[1744915395185,0.0717,85393.0,85392.0,0.1201163]
[1744915395374,0.07178,85393.0,85392.0,0.2274163]
[1744915402286,0.07178,85393.0,85392.0,0.1925163]
[1744915406203,0.07178,85393.0,85392.0,0.1576163]
[1744915406385,0.07178,85393.0,85392.0,0.003]
[1744915406592,0.07178,85393.0,85392.0,0.1201163]
[1744915406784,0.46838,85393.0,85392.0,0.1201163]
[1744915407386,0.46838,85393.0,85392.0,0.1171163]
[1744915407989,0.46838,85393.0,85392.0,0.1519163]
[1744915415387,0.46838,85393.0,85392.0,0.1171163]
[1744915417129,0.10758,85393.0,85392.0,0.1171163]
[1744915417293,0.46838,85393.0,85392.0,0.1171163]
[1744915419806,0.10758,85393.0,85392.0,0.1171163]
[1744915420205,0.10758,85393.0,85392.0,0.1541163]
[1744915420506,0.07178,85393.0,85392.0,0.1541163]
[1744915420707,0.0717,85393.0,85392.0,0.1541163]
[1744915420910,0.07178,85393.0,85392.0,0.1901163]
[1744915421206,0.07178,85393.0,85392.0,0.1931163]
[1744915422607,0.07178,85393.0,85392.0,0.1201163]
[1744915423202,0.07178,85393.0,85392.0,0.1171163]
[1744915423441,0.43258,85393.0,85392.0,0.1171163]
[1744915423602,0.07178,85393.0,85392.0,0.1171163]
[1744915426713,0.43258,85393.0,85392.0,0.1171163]
[1744915432613,0.07178,85393.0,85392.0,0.1171163]
[1744915432911,0.43258,85393.0,85392.0,0.1171163]
[1744915433614,0.43258,85393.0,85392.0,0.1526163]
[1744915434518,0.43258,85393.0,85392.0,0.1171163]
[1744915435511,0.07178,85393.0,85392.0,0.1526163]
[1744915436016,0.07178,85393.0,85392.0,0.2276163]
[1744915436204,0.07178,85393.0,85392.0,0.1922163]
[1744915436205,0.0717,85393.0,85392.0,0.1922163]
[1744915436514,0.07178,85393.0,85392.0,0.1922163]
[1744915437113,0.07178,85393.0,85392.0,0.1892163]
[1744915438032,0.07178,85393.0,85392.0,0.1526163]
[1744915441806,0.03508,85393.0,85392.0,0.1877163]
[1744915442716,0.03508,85393.0,85392.0,0.1526163]
[1744915445809,0.39588,85393.0,85392.0,0.1526163]
[1744915447217,0.5129949,85393.0,85392.0,0.1171163]
[1744915447418,0.39588,85393.0,85392.0,0.1171163]
[1744915448523,0.43318,85393.0,85392.0,0.1171163]
[1744915449923,0.5502949,85393.0,85392.0,0.1171163]
[1744915450219,0.07238,85393.0,85392.0,0.1171163]
[1744915451822,0.07238,85393.0,85392.0,0.1541163]
[1744915455930,0.07238,85393.0,85392.0,0.1171163]
[1744915458438,0.07238,85393.0,85392.0,0.1171163]
[1744915461025,0.07238,85393.0,85392.0,0.1533163]
[1744915463725,0.0723,85393.0,85392.0,0.1925163]
[1744915463926,0.07238,85393.0,85392.0,0.1925163]
[1744915464931,0.08958182,85395.0,85392.0,0.1925163]
[1744915464932,0.05741413,85395.0,85394.0,0.1171136]
[1744915465234,3e-08,85395.0,85394.0,0.7509136]
[1744915465430,3e-08,85395.0,85394.0,0.8262136]
[1744915465726,0.1786194,85413.0,85405.0,0.1170985]
[1744915465922,0.11448342,85406.0,85405.0,0.5642185]
[1744915466127,0.11448342,85406.0,85405.0,0.5672185]
[1744915466323,0.11448342,85414.0,85413.0,0.1170875]
[1744915466631,0.11448342,85414.0,85413.0,0.4778875]
[1744915467024,0.11448342,85414.0,85413.0,0.5531875]
[1744915467225,0.11448342,85414.0,85413.0,0.5561875]
[1744915467432,0.08441842,85414.0,85413.0,0.5661875]
[1744915467931,0.08449842,85414.0,85413.0,0.5661875]
[1744915470839,8e-05,85414.0,85413.0,0.5661875]
[1744915471746,1e-07,85414.0,85413.0,0.5661875]
[1744915474239,5e-08,85429.0,85428.0,0.117067]
[1744915474536,5e-08,85429.0,85428.0,0.924947]
[1744915474929,8.005e-05,85429.0,85428.0,0.924947]
[1744915475237,0.0731,85439.0,85438.0,0.1170532]
[1744915475426,0.0731,85439.0,85438.0,0.4778532]
[1744915476033,0.0731,85439.0,85438.0,0.48952398]
[1744915476236,0.0731,85439.0,85438.0,0.1170532]
[1744915476438,0.0731,85439.0,85429.0,0.0762]
[1744915476439,0.0585307,85433.0,85429.0,0.0762]
[1744915476633,0.1164,85432.0,85431.0,0.1170628]
[1744915476839,0.2334615,85432.0,85431.0,0.1170628]
[1744915478135,0.1170628,85431.0,85423.0,0.0762]
[1744915478339,0.1170628,85431.0,85430.0,0.11723984]
[1744915478633,0.0784,85431.0,85430.0,0.11723984]
[1744915479336,0.07848,85431.0,85430.0,0.11723984]
[1744915479537,0.1955428,85431.0,85430.0,0.11723984]
[1744915484643,0.1955428,85431.0,85430.0,0.00017564]
[1744915485033,0.1955428,85431.0,85430.0,0.11723984]
[1744915487742,0.1955428,85431.0,85430.0,0.00017564]
[1744915488043,0.1955428,85431.0,85407.0,0.0585478]
[1744915488044,0.1756038,85427.0,85426.0,0.175599]
[1744915488853,0.188767,85428.0,85427.0,0.1170683]
[1744915489146,0.152967,85428.0,85427.0,0.1170683]
[1744915490342,0.155967,85428.0,85427.0,0.1170683]
[1744915491344,0.152967,85428.0,85427.0,0.1170683]
[1744915495849,0.1170697,85426.0,85425.0,0.0585355]
[1744915496044,0.5364046,85426.0,85425.0,0.1170701]
[1744915496240,0.5721046,85426.0,85425.0,0.1170701]
[1744915496440,0.5721046,85426.0,85424.0,0.0585362]
[1744915496650,0.5721046,85426.0,85425.0,0.1170701]
[1744915497643,0.2113046,85426.0,85425.0,0.1170701]
[1744915497848,0.5721046,85426.0,85425.0,0.1170701]
[1744915502668,0.6101046,85426.0,85425.0,0.1170701]
[1744915502965,0.4930349,85426.0,85425.0,0.1170701]
[1744915503165,0.4930349,85426.0,85425.0,0.1535701]
[1744915503364,0.4930349,85426.0,85425.0,0.1170701]
[1744915503869,0.1322349,85426.0,85425.0,0.1170701]
[1744915504166,0.4930349,85426.0,85425.0,0.1170701]
[1744915507666,0.1907697,85426.0,85425.0,0.1170701]
[1744915507861,0.1907697,85426.0,85425.0,0.1550701]
[1744915508671,0.1908497,85426.0,85425.0,0.1550701]
[1744915508970,0.07378,85426.0,85425.0,0.1550701]
[1744915509163,0.1907697,85426.0,85425.0,0.1550701]
[1744915509466,0.07378,85426.0,85425.0,0.1918701]
[1744915509664,0.0737,85426.0,85425.0,0.1918701]
[1744915509865,0.07378,85426.0,85425.0,0.1918701]
[1744915510373,0.1908497,85426.0,85425.0,0.1918701]
[1744915510670,0.07378,85426.0,85425.0,0.1918701]
[1744915511468,8e-05,85426.0,85425.0,0.1918701]
[1744915511658,0.0585236,85443.0,85425.0,0.1918701]
[1744915511659,0.00017564,85436.0,85425.0,0.51176]
[1744915511867,0.00017564,85436.0,85435.0,0.1170574]
[1744915512070,0.00017564,85436.0,85435.0,0.2323574]
[1744915512367,0.00025564,85436.0,85435.0,0.2323574]
[1744915513268,0.00017564,85436.0,85435.0,0.2323574]
[1744915513472,0.00025564,85436.0,85435.0,0.2323574]
[1744915521075,0.00025564,85436.0,85435.0,0.1938574]
[1744915521281,0.00025564,85436.0,85435.0,0.1559574]
[1744915522070,0.15331164,85436.0,85435.0,0.003]
[1744915522270,0.1170738,85423.0,85422.0,0.07616]
[1744915522575,0.1170738,85423.0,85422.0,0.1756113]
[1744915522576,0.0585369,85423.0,85422.0,0.1756113]
[1744915522775,0.1649369,85423.0,85422.0,0.1756113]
[1744915522978,0.1649369,85423.0,85419.0,0.00017564]
[1744915522979,0.1170779,85420.0,85419.0,0.00017564]
[1744915523373,0.1170903,85411.0,85410.0,0.17732113]
[1744915523580,0.4778903,85411.0,85410.0,0.17732113]
[1744915523780,0.5856903,85411.0,85410.0,0.29441273]
[1744915523989,0.5856903,85411.0,85410.0,0.1170916]
[1744915524581,0.1170944,85408.0,85407.0,0.35296273]
[1744915524975,0.0585465,85410.0,85409.0,0.117093]
[1744915525175,0.1324465,85410.0,85409.0,0.117093]
[1744915527285,0.0739,85410.0,85409.0,0.117093]
[1744915528289,0.1909916,85410.0,85409.0,0.117093]
[1744915528482,0.0739,85410.0,85409.0,0.117093]
[1744915529085,0.1909916,85410.0,85409.0,0.117093]
[1744915552206,0.1909916,85410.0,85403.0,0.1756504]
[1744915552207,0.1756512,85404.0,85403.0,0.1756504]
[1744915552405,0.1756512,85404.0,85403.0,0.1171012]
[1744915552598,0.1171012,85403.0,85394.0,0.1171131]
[1744915552893,0.1171149,85393.0,85392.0,0.0948575]
[1744915553099,0.4779149,85393.0,85392.0,0.0948575]
[1744915553293,0.5500149,85393.0,85392.0,0.0948575]
[1744915553704,0.5500149,85393.0,85392.0,0.2705246]
[1744915554892,0.1892149,85393.0,85392.0,0.2705246]
[1744915555397,0.5500149,85393.0,85392.0,0.2705246]
[1744915556002,0.1756882,85386.0,85385.0,0.0585627]
[1744915556204,0.1171259,85385.0,85384.0,0.00017564]
[1744915556402,0.1546259,85385.0,85384.0,0.00017564]
[1744915557000,0.1546259,85385.0,85384.0,0.11730294]
[1744915557398,0.1546259,85385.0,85384.0,0.15270294]
[1744915557998,0.0373,85393.0,85392.0,0.1171163]
[1744915558199,0.11900169,85401.0,85393.0,0.1171149]
[1744915558404,0.11900169,85401.0,85393.0,0.1534149]
[1744915558704,0.11919853,85401.0,85400.0,0.1171053]
[1744915558901,0.11900169,85401.0,85400.0,0.1171053]
[1744915559096,0.11900169,85401.0,85400.0,0.2286053]
[1744915559805,0.11908169,85401.0,85400.0,0.2286053]
[1744915560104,0.11900169,85407.0,85406.0,0.1170971]
[1744915561001,0.11908169,85407.0,85406.0,0.1900971]
[1744915561202,0.11908169,85407.0,85406.0,0.1930971]
[1744915564007,8e-05,85407.0,85406.0,0.1930971]
[1744915565707,0.00010801,85413.0,85411.0,0.0585451]
[1744915566006,0.1551782,85420.0,85416.0,0.1170834]
[1744915566210,0.1551782,85420.0,85419.0,0.1170793]
[1744915566902,0.1756325,85415.0,85413.0,0.0585432]
[1744915567100,0.1170889,85412.0,85411.0,0.00017564]
[1744915567707,0.1551889,85412.0,85411.0,0.00017564]
[1744915568303,0.1551889,85412.0,85411.0,0.11726594]
[1744915572712,0.1907889,85412.0,85411.0,0.11726594]
[1744915574212,0.5515889,85412.0,85411.0,0.11726594]
[1744915575706,0.5515889,85412.0,85411.0,0.00017564]
[1744915576908,0.5515889,85412.0,85411.0,0.11726594]
[1744915577715,0.6101334,85412.0,85410.0,0.0585457]
[1744915577915,0.1756532,85404.0,85403.0,0.0585505]
[1744915578110,0.5364532,85404.0,85403.0,0.0585505]
[1744915579510,0.5950038,85404.0,85403.0,0.0585505]
[1744915586818,0.073,85407.0,85406.0,0.1170971]
[1744915587124,0.07308,85407.0,85406.0,0.1170971]
[1744915587305,0.07308,85407.0,85406.0,0.5151971]
[1744915589714,0.07308,85407.0,85406.0,0.1543971]
[1744915592722,0.07308,85407.0,85406.0,0.1170971]
[1744915593821,0.07308,85407.0,85406.0,0.1532971]
[1744915594125,0.0585537,85399.0,85388.0,0.06329812]
[1744915594328,0.3608,85380.0,85346.0,0.00881435]
[1744915594524,0.1172138,85321.0,85320.0,0.0738]
[1744915594732,0.058616,85308.0,85304.0,0.0381]
[1744915595024,0.058616,85308.0,85293.0,0.4145]
[1744915595025,0.0586207,85301.0,85291.0,1e-08]
[1744915595235,0.0586207,85301.0,85262.0,0.3608]
[1744915595236,0.1172646,85284.0,85283.0,0.02940914]
[1744915595417,0.1172646,85284.0,85263.0,0.1944]
[1744915595418,0.3908,85284.0,85263.0,0.1944]
[1744915595619,0.23820772,85290.0,85280.0,0.3608]
[1744915595813,0.3608,85300.0,85289.0,0.3608]
[1744915595814,0.23820772,85300.0,85289.0,0.3608]
[1744915596014,0.23820772,85300.0,85299.0,0.478044]
[1744915596318,0.3608,85337.0,85299.0,0.3708]
[1744915596625,0.3608,85337.0,85324.0,0.3608]
[1744915596814,0.1172069,85326.0,85325.0,0.0381]
[1744915597019,8e-05,85330.0,85325.0,0.0381]
[1744915597213,0.00017585,85339.0,85335.0,0.1171945]
[1744915597418,0.00017585,85339.0,85338.0,0.1171904]
[1744915597822,0.00025585,85339.0,85338.0,0.1919104]
[1744915598018,0.00025585,85339.0,85338.0,0.1869104]
[1744915598220,0.0585741,85369.0,85338.0,0.1869104]
[1744915598221,0.058578,85363.0,85354.0,0.0585842]
[1744915598531,0.1171708,85353.0,85352.0,0.1171699]
[1744915599027,0.1172508,85353.0,85352.0,0.1171699]
[1744915599426,0.175836,85353.0,85352.0,0.1171699]
[1744915599625,0.1171726,85351.0,85350.0,0.1536732]
[1744915600221,0.1554726,85351.0,85350.0,0.1536732]
[1744915600416,0.1921726,85351.0,85350.0,0.1536732]
[1744915600726,0.1171097,85398.0,85397.0,0.1756611]
[1744915601026,0.1585533,85400.0,85380.0,0.62895914]
[1744915601027,0.1,85400.0,85380.0,0.62895914]
[1744915601218,0.1171081,85398.0,85397.0,0.00193202]
[1744915601724,0.7279081,85398.0,85397.0,0.00193202]
[1744915601927,0.7379081,85398.0,85397.0,2e-08]
[1744915602228,0.7379081,85398.0,85360.0,0.0585797]
[1744915602229,0.117119,85390.0,85389.0,0.00017574]
[1744915602431,0.4108,85390.0,85348.0,0.3608]
[1744915602619,0.1171753,85349.0,85348.0,0.3608]
[1744915602932,0.3608,85367.0,85348.0,0.3608]
[1744915602933,0.3608,85367.0,85355.0,0.0585834]
[1744915603121,0.1171657,85357.0,85356.0,0.1757412]
[1744915603323,0.3608,85360.0,85348.0,0.3608]
[1744915603530,0.1171753,85349.0,85348.0,0.4779745]
[1744915603827,0.1171753,85349.0,85348.0,0.47815024]
[1744915604028,0.1529739,85350.0,85349.0,0.1171753]
[1744915604229,0.1530628,85359.0,85358.0,0.117163]
[1744915605127,0.1531428,85359.0,85358.0,0.117163]
[1744915605634,0.11811742,85363.0,85362.0,0.1171575]
[1744915606123,0.23527352,85363.0,85362.0,0.1201575]
[1744915606721,0.11811742,85363.0,85362.0,0.1201575]
[1744915606926,0.23527352,85363.0,85362.0,0.1201575]
[1744915607120,0.1172361,85363.0,85360.0,0.0585796]
[1744915607327,8e-05,85363.0,85362.0,0.1171575]
[1744915607734,0.3608,85398.0,85362.0,0.26]
[1744915607927,0.0381,85397.0,85396.0,0.1171108]
[1744915608122,0.1552094,85397.0,85396.0,0.1171108]
[1744915608328,0.1552894,85397.0,85396.0,0.1171108]
[1744915609931,0.2138446,85397.0,85394.0,0.026236]
[1744915610131,0.2138446,85397.0,85396.0,0.1171108]
[1744915610434,0.2137646,85397.0,85396.0,0.1171108]
[1744915610631,0.2137646,85397.0,85395.0,0.0739]
[1744915610632,0.1,85400.0,85399.0,0.1171067]
[1744915611121,0.1,85400.0,85399.0,0.1201067]
[1744915611324,0.1,85400.0,85399.0,0.1933067]
[1744915611929,0.10008,85400.0,85399.0,0.1933067]
[1744915612530,0.2171853,85400.0,85399.0,0.1933067]
[1744915613036,0.10008,85400.0,85399.0,0.1933067]
[1744915613231,0.10008,85400.0,85399.0,0.1903067]
[1744915613830,0.1,85400.0,85399.0,0.1903067]
[1744915614029,0.10008,85400.0,85399.0,0.1903067]
[1744915614226,0.10008,85400.0,85399.0,0.1933067]
[1744915614724,0.00017574,85405.0,85404.0,0.1170998]
[1744915615025,0.00010801,85419.0,85418.0,0.1170807]
[1744915615227,0.1170663,85432.0,85431.0,0.1755856]
[1744915615433,0.1170663,85432.0,85431.0,0.4193296]
[1744915616134,0.0585295,85434.0,85433.0,0.1170601]
[1744915616432,0.0952295,85434.0,85433.0,0.1170601]
[1744915616631,0.1344295,85434.0,85433.0,0.1170601]
[1744915617027,0.1170615,85432.0,85431.0,0.3608]
[1744915617828,0.0759,85434.0,85423.0,0.11724764]
[1744915618046,0.1170724,85424.0,85423.0,0.11724764]
[1744915620635,0.1170684,85427.0,85423.0,0.09501194]
[1744915620830,0.11792492,85436.0,85423.0,0.03647564]
[1744915621030,0.1170572,85436.0,85435.0,0.1170574]
[1744915622128,0.1170574,85435.0,85434.0,0.0363]
[1744915622332,0.1170724,85425.0,85422.0,0.0585375]
[1744915622530,0.1170724,85424.0,85415.0,0.3608]
[1744915622738,0.1170724,85424.0,85411.0,0.1170898]
[1744915622739,0.2000724,85424.0,85409.0,0.3608]
[1744915622936,0.2000724,85424.0,85419.0,0.3608]
[1744915623127,0.0585354,85426.0,85425.0,0.1170711]
[1744915623931,0.1170724,85424.0,85423.0,0.36097564]
[1744915624134,0.1170724,85424.0,85423.0,0.47804944]
[1744915624335,0.1170724,85424.0,85423.0,0.36097564]
[1744915624536,0.117082,85418.0,85417.0,0.1170811]
[1744915624737,0.117077,85421.0,85420.0,0.1170752]
[1744915624933,0.117077,85421.0,85420.0,0.1525752]
[1744915626232,0.04976132,85424.0,85423.0,0.1170738]
[1744915626740,0.16683372,85424.0,85423.0,0.1170738]
[1744915626947,0.04984132,85424.0,85423.0,0.1170738]
[1744915627130,0.04984132,85424.0,85423.0,0.1200738]
[1744915628944,0.04984132,85424.0,85421.0,0.03772474]
[1744915629142,0.04984132,85424.0,85423.0,0.1170738]
[1744915630143,0.04984132,85424.0,85423.0,0.1200738]
[1744915630440,0.16691372,85424.0,85423.0,0.1200738]
[1744915631241,0.16691372,85424.0,85423.0,0.1170738]
[1744915631436,0.1171524,85424.0,85423.0,0.1170738]
[1744915631639,0.1170724,85424.0,85423.0,0.1170738]
[1744915631842,0.1171524,85424.0,85423.0,0.1170738]
[1744915633338,0.1171524,85424.0,85423.0,0.1537738]
[1744915634650,0.1171524,85424.0,85423.0,0.1170738]
[1744915635133,0.2730255,85424.0,85423.0,0.1170738]
[1744915636534,0.49979917,85424.0,85423.0,0.1170738]
[1744915636736,0.38272677,85424.0,85423.0,0.1170738]
[1744915637639,0.49980197,85424.0,85421.0,0.08361907]
[1744915637941,0.49980197,85424.0,85423.0,0.1170738]
[1744915639233,0.1170779,85420.0,85419.0,0.3608]
[1744915639639,0.1544779,85420.0,85419.0,0.4778793]
[1744915640033,0.23622103,85424.0,85421.0,0.0585382]
[1744915640339,0.41183103,85424.0,85423.0,0.1170738]
[1744915640737,0.41183103,85424.0,85423.0,0.1877738]
[1744915641137,0.23622103,85424.0,85423.0,0.1877738]
[1744915641444,0.35329343,85424.0,85423.0,0.2221738]
[1744915641642,0.35321343,85424.0,85423.0,0.2221738]
[1744915641834,0.35329343,85424.0,85423.0,0.2221738]
[1744915642248,0.1171524,85424.0,85423.0,0.2221738]
[1744915642638,0.1171524,85424.0,85423.0,0.1529738]
[1744915642846,0.1887524,85424.0,85423.0,0.1529738]
[1744915645143,0.1887524,85424.0,85423.0,0.1891738]
[1744915645751,0.42489343,85424.0,85423.0,0.1891738]